[Event "Late-Titled-Tuesday-Blitz-March-19-2024"]
[Site "Chess.com"]
[Date "2024.03.19"]
[Round "5"]
[White "Franmu14"]
[Black "GHANDEEVAM2003"]
[Result "0-1"]
[WhiteElo "2723"]
[BlackElo "3034"]
[TimeControl "180+1"]
[EndTime "14:53:35 PDT"]
[Termination "GHANDEEVAM2003 won by resignation"]

1. e4 {[%clk 0:02:54]} 1... c6 {[%clk 0:03:00]} 2. Nc3 {[%clk 0:02:54.9]} 2...
d5 {[%clk 0:03:00.3]} 3. exd5 {[%clk 0:02:54.6]} 3... cxd5 {[%clk 0:03:01.2]} 4.
d4 {[%clk 0:02:55]} 4... Nc6 {[%clk 0:03:01.2]} 5. Bf4 {[%clk 0:02:52.6]} 5...
Bf5 {[%clk 0:03:01.1]} 6. h3 {[%clk 0:02:49.8]} 6... e6 {[%clk 0:03:01.1]} 7. g4
{[%clk 0:02:48.4]} 7... Bg6 {[%clk 0:03:01.1]} 8. Nge2 {[%clk 0:02:47.5]} 8...
Bd6 {[%clk 0:02:58.2]} 9. Bg2 {[%clk 0:02:46.6]} 9... Nge7 {[%clk 0:02:55.6]}
10. O-O {[%clk 0:02:46.3]} 10... O-O {[%clk 0:02:56.3]} 11. Qd2 {[%clk
0:02:41.9]} 11... Rc8 {[%clk 0:02:56.4]} 12. Bg3 {[%clk 0:02:15.5]} 12... Bxg3
{[%clk 0:02:52.5]} 13. Nxg3 {[%clk 0:02:12.1]} 13... Qb6 {[%clk 0:02:52.3]} 14.
Nce2 {[%clk 0:02:10.1]} 14... Qxb2 {[%clk 0:02:51.8]} 15. Rfc1 {[%clk
0:02:04.3]} 15... b6 {[%clk 0:02:43.3]} 16. h4 {[%clk 0:02:02.5]} 16... h6
{[%clk 0:02:40.6]} 17. h5 {[%clk 0:01:53.5]} 17... Bh7 {[%clk 0:02:40.9]} 18. g5
{[%clk 0:01:54.2]} 18... hxg5 {[%clk 0:02:40.8]} 19. Qxg5 {[%clk 0:01:55.1]}
19... f6 {[%clk 0:02:38]} 20. Qg4 {[%clk 0:01:52.7]} 20... Nf5 {[%clk
0:02:37.4]} 21. h6 {[%clk 0:01:49.6]} 21... Ncxd4 {[%clk 0:02:27.7]} 22. hxg7
{[%clk 0:01:28.4]} 22... Nxe2+ {[%clk 0:02:25.3]} 23. Nxe2 {[%clk 0:01:28]}
23... Nxg7 {[%clk 0:02:25.3]} 24. Nf4 {[%clk 0:01:27.7]} 24... Bf5 {[%clk
0:02:22.9]} 25. Qg3 {[%clk 0:01:27.9]} 25... Rxc2 {[%clk 0:02:22.4]} 26. Re1
{[%clk 0:01:15]} 26... Qc3 {[%clk 0:02:22.1]} 27. Qh4 {[%clk 0:01:08]} 27... Kf7
{[%clk 0:02:16.9]} 28. Rad1 {[%clk 0:01:05.6]} 28... Rg8 {[%clk 0:02:14.6]} 29.
Re3 {[%clk 0:00:41.3]} 29... Qc5 {[%clk 0:02:11.1]} 30. Rxd5 {[%clk 0:00:33.8]}
30... exd5 {[%clk 0:02:10]} 31. Nxd5 {[%clk 0:00:34.7]} 31... Rc1+ {[%clk
0:02:05.8]} 32. Kh2 {[%clk 0:00:33.2]} 32... Qd6+ {[%clk 0:02:06.3]} 33. f4
{[%clk 0:00:32.4]} 33... Rc2 {[%clk 0:01:54.1]} 34. Re7+ {[%clk 0:00:07.7]}
34... Kf8 {[%clk 0:01:54.6]} 35. Qe1 {[%clk 0:00:01.9]} 35... Rxg2+ {[%clk
0:01:53.5]} 36. Kh1 {[%clk 0:00:02.6]} 36... Qxd5 {[%clk 0:01:50.7]} 0-1

[Event "Late-Titled-Tuesday-Blitz-March-19-2024"]
[Site "Chess.com"]
[Date "2024.03.19"]
[Round "5"]
[White "stregachess"]
[Black "Orest_Vovk"]
[Result "0-1"]
[WhiteElo "2018"]
[BlackElo "2495"]
[TimeControl "180+1"]
[EndTime "14:53:37 PDT"]
[Termination "Orest_Vovk won by resignation"]

1. d4 {[%clk 0:03:00.9]} 1... Nc6 {[%clk 0:02:46]} 2. Nf3 {[%clk 0:02:59]} 2...
e5 {[%clk 0:02:45.2]} 3. d5 {[%clk 0:02:49.4]} 3... e4 {[%clk 0:02:45.1]} 4. Ng5
{[%clk 0:02:29.9]} 4... Ne5 {[%clk 0:02:37.8]} 5. Nxe4 {[%clk 0:02:23.3]} 5...
f5 {[%clk 0:02:37]} 6. Nec3 {[%clk 0:02:02.6]} 6... Bc5 {[%clk 0:02:33.7]} 7. g3
{[%clk 0:01:46.5]} 7... Nf6 {[%clk 0:02:31.5]} 8. Bg2 {[%clk 0:01:46.3]} 8... d6
{[%clk 0:02:30.8]} 9. O-O {[%clk 0:01:44.9]} 9... h5 {[%clk 0:02:29.8]} 10. Bg5
{[%clk 0:01:40]} 10... h4 {[%clk 0:02:29.1]} 11. e4 {[%clk 0:01:18.7]} 11...
hxg3 {[%clk 0:02:26.2]} 12. hxg3 {[%clk 0:01:18.2]} 12... Nf7 {[%clk 0:02:19.6]}
13. Qd2 {[%clk 0:01:04.9]} 13... Nxg5 {[%clk 0:01:55]} 14. Qxg5 {[%clk
0:01:04.3]} 14... Kf7 {[%clk 0:01:42.4]} 15. exf5 {[%clk 0:01:03.1]} 15... Rh5
{[%clk 0:01:39.1]} 16. Qf4 {[%clk 0:00:19.6]} 16... Rxf5 {[%clk 0:01:29.5]} 17.
Qd2 {[%clk 0:00:19]} 17... Ng4 {[%clk 0:01:22.8]} 18. Ne4 {[%clk 0:00:16.5]}
18... Qh8 {[%clk 0:01:18]} 19. Ng5+ {[%clk 0:00:10.7]} 19... Rxg5 {[%clk
0:01:15.2]} 20. Re1 {[%clk 0:00:04.3]} 20... Qh2+ {[%clk 0:01:10.5]} 0-1

[Event "Late-Titled-Tuesday-Blitz-March-19-2024"]
[Site "Chess.com"]
[Date "2024.03.19"]
[Round "5"]
[White "DenLaz"]
[Black "kassablanca"]
[Result "1-0"]
[WhiteElo "3102"]
[BlackElo "2740"]
[TimeControl "180+1"]
[EndTime "14:53:40 PDT"]
[Termination "DenLaz won by resignation"]

1. d4 {[%clk 0:03:00.9]} 1... d5 {[%clk 0:03:00]} 2. c4 {[%clk 0:03:01.5]} 2...
e6 {[%clk 0:02:59.1]} 3. Nf3 {[%clk 0:03:02.1]} 3... Nf6 {[%clk 0:02:58.7]} 4.
g3 {[%clk 0:03:02.8]} 4... c5 {[%clk 0:02:58.7]} 5. cxd5 {[%clk 0:03:02.6]} 5...
exd5 {[%clk 0:02:59.4]} 6. Bg2 {[%clk 0:03:03.2]} 6... Nc6 {[%clk 0:02:59.8]} 7.
O-O {[%clk 0:03:03.8]} 7... Be7 {[%clk 0:02:59.3]} 8. dxc5 {[%clk 0:03:03.2]}
8... Bxc5 {[%clk 0:02:58.9]} 9. Nc3 {[%clk 0:03:03.8]} 9... O-O {[%clk
0:02:57.8]} 10. a3 {[%clk 0:03:04.5]} 10... a5 {[%clk 0:02:50.3]} 11. Bf4 {[%clk
0:03:05]} 11... h6 {[%clk 0:02:38.1]} 12. Rc1 {[%clk 0:03:04.8]} 12... Bb6
{[%clk 0:02:34.2]} 13. Ne5 {[%clk 0:03:03.9]} 13... Re8 {[%clk 0:02:24.6]} 14.
Nd3 {[%clk 0:03:00.3]} 14... Bg4 {[%clk 0:02:09.2]} 15. h3 {[%clk 0:02:54.4]}
15... Bf5 {[%clk 0:02:05.8]} 16. Nb5 {[%clk 0:02:52.3]} 16... Ne4 {[%clk
0:01:57.2]} 17. g4 {[%clk 0:02:51]} 17... Bg6 {[%clk 0:01:55.2]} 18. Bh2 {[%clk
0:02:45.5]} 18... Qh4 {[%clk 0:01:39.8]} 19. Nc7 {[%clk 0:02:42.8]} 19... Bxc7
{[%clk 0:01:10.4]} 20. Bxc7 {[%clk 0:02:43.7]} 20... h5 {[%clk 0:01:05]} 21. Nf4
{[%clk 0:02:37.4]} 21... Ne7 {[%clk 0:00:46.4]} 22. Nxg6 {[%clk 0:02:27.8]}
22... Nxg6 {[%clk 0:00:45.6]} 23. Qxd5 {[%clk 0:02:27]} 23... Nf6 {[%clk
0:00:42]} 24. Qxb7 {[%clk 0:02:26.5]} 24... hxg4 {[%clk 0:00:41.6]} 25. Bg3
{[%clk 0:02:25.5]} 25... Qh6 {[%clk 0:00:34.1]} 26. hxg4 {[%clk 0:02:24.7]}
26... Nxg4 {[%clk 0:00:32.4]} 27. Qd7 {[%clk 0:02:18.2]} 27... Nf6 {[%clk
0:00:31.5]} 28. Qb5 {[%clk 0:02:12.8]} 28... Nf4 {[%clk 0:00:23.7]} 29. Bxf4
{[%clk 0:02:05.5]} 29... Qxf4 {[%clk 0:00:24.6]} 30. Bxa8 {[%clk 0:01:50.6]}
30... Re5 {[%clk 0:00:13.4]} 31. Rc8+ {[%clk 0:01:44.9]} 31... Kh7 {[%clk
0:00:13.8]} 32. Qd3+ {[%clk 0:01:45.5]} 32... g6 {[%clk 0:00:13.2]} 33. Bg2
{[%clk 0:01:39.8]} 33... Ng4 {[%clk 0:00:11.6]} 34. Qg3 {[%clk 0:01:36.9]} 34...
Qf5 {[%clk 0:00:09.1]} 35. Rc4 {[%clk 0:01:34.9]} 1-0

[Event "Late-Titled-Tuesday-Blitz-March-19-2024"]
[Site "Chess.com"]
[Date "2024.03.19"]
[Round "5"]
[White "KNVB"]
[Black "GMAneta"]
[Result "1-0"]
[WhiteElo "2807"]
[BlackElo "2617"]
[TimeControl "180+1"]
[EndTime "14:53:44 PDT"]
[Termination "KNVB won by checkmate"]

1. e4 {[%clk 0:03:00.9]} 1... c5 {[%clk 0:02:59.7]} 2. Nf3 {[%clk 0:02:59.6]}
2... Nc6 {[%clk 0:02:59.9]} 3. c3 {[%clk 0:03:00]} 3... d5 {[%clk 0:02:59.3]} 4.
d3 {[%clk 0:02:57.2]} 4... Nf6 {[%clk 0:02:55.9]} 5. Nbd2 {[%clk 0:02:57.2]}
5... Bg4 {[%clk 0:02:54.5]} 6. Be2 {[%clk 0:02:56.9]} 6... g6 {[%clk 0:02:53.2]}
7. h3 {[%clk 0:02:56.8]} 7... Bxf3 {[%clk 0:02:53.2]} 8. Bxf3 {[%clk 0:02:57.5]}
8... Bg7 {[%clk 0:02:53.7]} 9. O-O {[%clk 0:02:56.3]} 9... O-O {[%clk
0:02:53.5]} 10. exd5 {[%clk 0:02:28.8]} 10... Nxd5 {[%clk 0:02:51.8]} 11. Nc4
{[%clk 0:02:23.4]} 11... Qd7 {[%clk 0:02:46.5]} 12. Re1 {[%clk 0:02:10.3]} 12...
Rfd8 {[%clk 0:02:44.7]} 13. a4 {[%clk 0:01:48.3]} 13... Nb6 {[%clk 0:02:38.1]}
14. Nxb6 {[%clk 0:00:51.7]} 14... axb6 {[%clk 0:02:39]} 15. Be2 {[%clk
0:00:52.6]} 15... Ne5 {[%clk 0:02:37.1]} 16. Bf4 {[%clk 0:00:14.8]} 16... Qf5
{[%clk 0:02:36.2]} 17. Bxe5 {[%clk 0:00:10.4]} 17... Bxe5 {[%clk 0:02:37.1]} 18.
Bf1 {[%clk 0:00:08.8]} 18... Rd7 {[%clk 0:02:33]} 19. Qb3 {[%clk 0:00:05.5]}
19... Qf6 {[%clk 0:02:24.7]} 20. Re3 {[%clk 0:00:02.6]} 20... h5 {[%clk
0:02:22.6]} 21. Rf3 {[%clk 0:00:02]} 21... c4 {[%clk 0:01:49.9]} 22. Qxc4 {[%clk
0:00:01.9]} 22... Qg7 {[%clk 0:01:47.5]} 23. d4 {[%clk 0:00:02.3]} 23... Bd6
{[%clk 0:01:46.4]} 24. Re1 {[%clk 0:00:02.7]} 24... Rc7 {[%clk 0:01:45.4]} 25.
Qb3 {[%clk 0:00:03]} 25... h4 {[%clk 0:01:44.3]} 26. Bc4 {[%clk 0:00:02.2]}
26... e6 {[%clk 0:01:43.3]} 27. Bxe6 {[%clk 0:00:02.8]} 27... fxe6 {[%clk
0:01:41.8]} 28. Qxe6+ {[%clk 0:00:03.7]} 28... Kh7 {[%clk 0:01:42]} 29. Qxd6
{[%clk 0:00:04.2]} 29... Rxa4 {[%clk 0:01:41.6]} 30. Rfe3 {[%clk 0:00:03]} 30...
Kh6 {[%clk 0:01:38.3]} 31. Qf4+ {[%clk 0:00:02.8]} 31... g5 {[%clk 0:01:38.1]}
32. Re6+ {[%clk 0:00:03]} 32... Kh7 {[%clk 0:01:38.2]} 33. Qe4+ {[%clk
0:00:03.4]} 33... Kg8 {[%clk 0:01:35.1]} 34. Re8+ {[%clk 0:00:03.6]} 34... Kf7
{[%clk 0:01:35.4]} 35. Qe6# {[%clk 0:00:04.1]} 1-0

[Event "Late-Titled-Tuesday-Blitz-March-19-2024"]
[Site "Chess.com"]
[Date "2024.03.19"]
[Round "5"]
[White "MYMChessAcademy"]
[Black "Dr_Pepper18"]
[Result "1-0"]
[WhiteElo "2273"]
[BlackElo "2426"]
[TimeControl "180+1"]
[EndTime "14:53:46 PDT"]
[Termination "MYMChessAcademy won by resignation"]

1. e4 {[%clk 0:03:00.9]} 1... c5 {[%clk 0:02:58.8]} 2. Nf3 {[%clk 0:03:00]} 2...
d6 {[%clk 0:02:58.2]} 3. d4 {[%clk 0:03:00]} 3... cxd4 {[%clk 0:02:59.1]} 4.
Nxd4 {[%clk 0:03:00.4]} 4... Nf6 {[%clk 0:02:59.5]} 5. Nc3 {[%clk 0:03:00.1]}
5... a6 {[%clk 0:02:59.7]} 6. Be2 {[%clk 0:02:59.8]} 6... e5 {[%clk 0:02:59.7]}
7. Nb3 {[%clk 0:03:00.3]} 7... Be7 {[%clk 0:03:00.1]} 8. O-O {[%clk 0:03:00.8]}
8... O-O {[%clk 0:02:57.9]} 9. Qd3 {[%clk 0:03:01.3]} 9... b5 {[%clk 0:02:42.6]}
10. Bd2 {[%clk 0:03:01.1]} 10... Bb7 {[%clk 0:02:41.8]} 11. Nd5 {[%clk
0:03:00.6]} 11... Nxd5 {[%clk 0:02:37.3]} 12. exd5 {[%clk 0:03:01.5]} 12... Nd7
{[%clk 0:02:37.9]} 13. a4 {[%clk 0:02:59.8]} 13... Nf6 {[%clk 0:02:34.6]} 14.
Bf3 {[%clk 0:02:58]} 14... Qd7 {[%clk 0:02:17.1]} 15. Na5 {[%clk 0:02:56.8]}
15... Rac8 {[%clk 0:02:12.7]} 16. Nxb7 {[%clk 0:02:45.1]} 16... Qxb7 {[%clk
0:02:13.6]} 17. axb5 {[%clk 0:02:45.1]} 17... Qxb5 {[%clk 0:02:14.2]} 18. Qxb5
{[%clk 0:02:44.5]} 18... axb5 {[%clk 0:02:15.1]} 19. c3 {[%clk 0:02:44.5]} 19...
e4 {[%clk 0:02:15.4]} 20. Be2 {[%clk 0:02:44]} 20... Nxd5 {[%clk 0:02:15.7]} 21.
Bxb5 {[%clk 0:02:43.9]} 21... Rb8 {[%clk 0:02:03.1]} 22. c4 {[%clk 0:02:42.7]}
22... Nc7 {[%clk 0:02:03.4]} 23. Ra7 {[%clk 0:02:33.4]} 23... Bd8 {[%clk
0:01:47.9]} 24. Bc6 {[%clk 0:02:08.6]} 24... Rxb2 {[%clk 0:01:41.1]} 25. Be3
{[%clk 0:01:54.5]} 25... Ne6 {[%clk 0:01:25.7]} 26. Bxe4 {[%clk 0:01:43.8]}
26... Bf6 {[%clk 0:00:52.3]} 27. Ra6 {[%clk 0:01:29.6]} 27... Be5 {[%clk
0:00:47]} 28. f4 {[%clk 0:01:24.5]} 28... Re2 {[%clk 0:00:44.8]} 29. fxe5 {[%clk
0:01:17.5]} 29... Rxe3 {[%clk 0:00:44.1]} 30. Bd5 {[%clk 0:01:17.7]} 30... dxe5
{[%clk 0:00:25.1]} 31. Rxe6 {[%clk 0:01:14.2]} 31... g6 {[%clk 0:00:24.7]} 32.
Re7 {[%clk 0:01:10.3]} 1-0

[Event "Late-Titled-Tuesday-Blitz-March-19-2024"]
[Site "Chess.com"]
[Date "2024.03.19"]
[Round "5"]
[White "diamonds13"]
[Black "xasid81"]
[Result "0-1"]
[WhiteElo "2367"]
[BlackElo "2601"]
[TimeControl "180+1"]
[EndTime "14:53:54 PDT"]
[Termination "xasid81 won by resignation"]

1. d4 {[%clk 0:03:00.9]} 1... d5 {[%clk 0:02:58.2]} 2. c4 {[%clk 0:03:01]} 2...
c6 {[%clk 0:02:57.2]} 3. cxd5 {[%clk 0:03:00.8]} 3... cxd5 {[%clk 0:02:58.1]} 4.
Bf4 {[%clk 0:03:00.8]} 4... Nc6 {[%clk 0:02:57.7]} 5. e3 {[%clk 0:03:00.8]} 5...
Nf6 {[%clk 0:02:57.1]} 6. Nc3 {[%clk 0:03:00.3]} 6... e6 {[%clk 0:02:57.2]} 7.
Bd3 {[%clk 0:02:59.6]} 7... Bd6 {[%clk 0:02:57.7]} 8. Nge2 {[%clk 0:02:58.7]}
8... Bxf4 {[%clk 0:02:56.6]} 9. exf4 {[%clk 0:02:57.7]} 9... a6 {[%clk
0:02:49.8]} 10. O-O {[%clk 0:02:49.8]} 10... O-O {[%clk 0:02:49.1]} 11. Rc1
{[%clk 0:02:48.7]} 11... Bd7 {[%clk 0:02:47.7]} 12. Na4 {[%clk 0:02:46.4]} 12...
Nb4 {[%clk 0:02:43.7]} 13. Nc5 {[%clk 0:02:36.2]} 13... Nxa2 {[%clk 0:02:38]}
14. Nxb7 {[%clk 0:02:32.5]} 14... Qb6 {[%clk 0:02:29]} 15. Nc5 {[%clk
0:02:28.4]} 15... Nxc1 {[%clk 0:02:25.8]} 16. Qxc1 {[%clk 0:02:26.7]} 16... Bb5
{[%clk 0:02:25.2]} 17. Rd1 {[%clk 0:02:20]} 17... Bxd3 {[%clk 0:02:24.7]} 18.
Rxd3 {[%clk 0:02:20.1]} 18... Rfc8 {[%clk 0:02:23]} 19. Rc3 {[%clk 0:02:03.9]}
19... Rcb8 {[%clk 0:01:50.8]} 20. b3 {[%clk 0:01:59.1]} 20... Ne4 {[%clk
0:01:40.1]} 21. Nxe4 {[%clk 0:01:54.1]} 21... dxe4 {[%clk 0:01:41]} 22. Qc2
{[%clk 0:01:45.8]} 22... Qb7 {[%clk 0:01:35.3]} 23. Ng3 {[%clk 0:01:42.4]} 23...
Qd5 {[%clk 0:01:29.7]} 24. Rc5 {[%clk 0:01:39.7]} 24... Qxd4 {[%clk 0:01:22.3]}
25. h4 {[%clk 0:01:25.2]} 25... e3 {[%clk 0:01:16.7]} 26. fxe3 {[%clk
0:01:15.8]} 26... Qxe3+ {[%clk 0:01:16.4]} 27. Kh2 {[%clk 0:01:16]} 27... Qxf4
{[%clk 0:01:13.8]} 28. Rc4 {[%clk 0:01:12.5]} 28... Qd6 {[%clk 0:01:05.7]} 29.
h5 {[%clk 0:01:08.5]} 29... h6 {[%clk 0:01:03]} 30. Kh3 {[%clk 0:01:04.2]} 30...
Rb5 {[%clk 0:00:51.7]} 31. Rc8+ {[%clk 0:00:54.8]} 31... Rxc8 {[%clk 0:00:50.9]}
32. Qxc8+ {[%clk 0:00:55.4]} 32... Qf8 {[%clk 0:00:49.7]} 33. Qxa6 {[%clk
0:00:55.2]} 33... Rxb3 {[%clk 0:00:48.2]} 34. Qc4 {[%clk 0:00:53.2]} 34... Qb8
{[%clk 0:00:45.2]} 0-1

[Event "Late-Titled-Tuesday-Blitz-March-19-2024"]
[Site "Chess.com"]
[Date "2024.03.19"]
[Round "5"]
[White "BilodeauA"]
[Black "jcibarra"]
[Result "1/2-1/2"]
[WhiteElo "3059"]
[BlackElo "2932"]
[TimeControl "180+1"]
[EndTime "14:53:58 PDT"]
[Termination "Game drawn by agreement"]

1. e4 {[%clk 0:03:00.9]} 1... c5 {[%clk 0:02:59.8]} 2. Nf3 {[%clk 0:03:01.1]}
2... e6 {[%clk 0:03:00.1]} 3. Nc3 {[%clk 0:03:01.5]} 3... Nc6 {[%clk 0:02:58.6]}
4. h3 {[%clk 0:03:01.8]} 4... Nf6 {[%clk 0:02:52]} 5. e5 {[%clk 0:03:01.4]} 5...
Nd5 {[%clk 0:02:45.9]} 6. Bb5 {[%clk 0:03:01.5]} 6... Nxc3 {[%clk 0:02:29.7]} 7.
dxc3 {[%clk 0:02:58.3]} 7... Qc7 {[%clk 0:02:30]} 8. Qe2 {[%clk 0:02:44.3]} 8...
h6 {[%clk 0:02:26.1]} 9. h4 {[%clk 0:02:39.1]} 9... Be7 {[%clk 0:02:25]} 10. a4
{[%clk 0:02:27.1]} 10... b6 {[%clk 0:02:21.8]} 11. h5 {[%clk 0:02:19.3]} 11...
Bb7 {[%clk 0:02:20.6]} 12. O-O {[%clk 0:02:17.5]} 12... O-O {[%clk 0:02:16.6]}
13. Bd3 {[%clk 0:02:02.5]} 13... Na5 {[%clk 0:01:54.9]} 14. Bf4 {[%clk
0:01:34.6]} 14... f5 {[%clk 0:01:46.7]} 15. c4 {[%clk 0:01:30.7]} 15... Bxf3
{[%clk 0:01:39.7]} 16. Qxf3 {[%clk 0:01:30.7]} 16... Nc6 {[%clk 0:01:40.4]} 17.
Qg3 {[%clk 0:01:26.5]} 17... Bg5 {[%clk 0:01:35.6]} 18. Rfe1 {[%clk 0:01:16.8]}
18... Qd8 {[%clk 0:01:33]} 19. Be2 {[%clk 0:01:02.2]} 19... Nd4 {[%clk
0:01:28.6]} 20. Bd1 {[%clk 0:00:59.1]} 20... Bxf4 {[%clk 0:01:28.6]} 21. Qxf4
{[%clk 0:00:59.2]} 21... Qg5 {[%clk 0:01:29.5]} 22. Qxg5 {[%clk 0:00:52.8]}
22... hxg5 {[%clk 0:01:30.4]} 23. c3 {[%clk 0:00:53.4]} 23... Nc6 {[%clk
0:01:30.7]} 24. Bf3 {[%clk 0:00:53.9]} 24... Rac8 {[%clk 0:01:31.3]} 25. Bxc6
{[%clk 0:00:48.1]} 25... dxc6 {[%clk 0:01:17.3]} 26. Rad1 {[%clk 0:00:44.8]}
26... Rfd8 {[%clk 0:01:17.2]} 27. g3 {[%clk 0:00:43.4]} 27... Kf7 {[%clk
0:01:07.9]} 28. Kg2 {[%clk 0:00:42.3]} 28... Ke7 {[%clk 0:01:04.2]} 29. Kf3
{[%clk 0:00:37.1]} 29... Rxd1 {[%clk 0:00:53.8]} 30. Rxd1 {[%clk 0:00:37.4]}
30... Rd8 {[%clk 0:00:50.3]} 31. Rxd8 {[%clk 0:00:29.2]} 31... Kxd8 {[%clk
0:00:51.2]} 32. g4 {[%clk 0:00:29.3]} 1/2-1/2

[Event "Late-Titled-Tuesday-Blitz-March-19-2024"]
[Site "Chess.com"]
[Date "2024.03.19"]
[Round "5"]
[White "CheckThis4"]
[Black "rodp92"]
[Result "1-0"]
[WhiteElo "2668"]
[BlackElo "2482"]
[TimeControl "180+1"]
[EndTime "14:53:58 PDT"]
[Termination "CheckThis4 won by resignation"]

1. e4 {[%clk 0:03:00.9]} 1... c5 {[%clk 0:02:58.1]} 2. Nf3 {[%clk 0:03:00.2]}
2... e6 {[%clk 0:02:58.6]} 3. d4 {[%clk 0:03:00.2]} 3... cxd4 {[%clk 0:02:59.5]}
4. Nxd4 {[%clk 0:03:00.6]} 4... Nf6 {[%clk 0:02:59.5]} 5. Nc3 {[%clk 0:03:00.8]}
5... d6 {[%clk 0:02:59.9]} 6. g4 {[%clk 0:02:59.8]} 6... h6 {[%clk 0:02:57.1]}
7. Rg1 {[%clk 0:02:57.7]} 7... Nc6 {[%clk 0:02:57]} 8. Be3 {[%clk 0:02:57.9]}
8... Bd7 {[%clk 0:02:55.9]} 9. Qd2 {[%clk 0:02:56.2]} 9... Nxd4 {[%clk
0:02:53.9]} 10. Bxd4 {[%clk 0:02:55.9]} 10... Bc6 {[%clk 0:02:54.6]} 11. f3
{[%clk 0:02:55.9]} 11... e5 {[%clk 0:02:49.6]} 12. Be3 {[%clk 0:02:54.8]} 12...
g5 {[%clk 0:02:44.7]} 13. O-O-O {[%clk 0:02:52.2]} 13... Be7 {[%clk 0:02:45]}
14. Bc4 {[%clk 0:02:51.1]} 14... Qa5 {[%clk 0:02:40.3]} 15. Bb3 {[%clk
0:02:46.5]} 15... a6 {[%clk 0:02:33.1]} 16. Kb1 {[%clk 0:02:46.1]} 16... Rc8
{[%clk 0:02:17.6]} 17. h4 {[%clk 0:02:36.6]} 17... gxh4 {[%clk 0:02:13.1]} 18.
Bxh6 {[%clk 0:02:36.5]} 18... Bd7 {[%clk 0:02:05.5]} 19. Bg7 {[%clk 0:02:28.2]}
19... Rg8 {[%clk 0:01:53.6]} 20. Bxf6 {[%clk 0:02:11]} 20... Bxf6 {[%clk
0:01:49.2]} 21. Qxd6 {[%clk 0:02:05.3]} 21... Qd8 {[%clk 0:01:41.8]} 22. Nd5
{[%clk 0:02:00.5]} 22... Rg6 {[%clk 0:01:16.3]} 23. Nxf6+ {[%clk 0:01:52]} 23...
Rxf6 {[%clk 0:01:13.5]} 24. Qxe5+ {[%clk 0:01:52]} 24... Kf8 {[%clk 0:01:10.8]}
25. f4 {[%clk 0:01:43.3]} 25... Qe7 {[%clk 0:00:59.2]} 26. Qxe7+ {[%clk
0:01:36.8]} 26... Kxe7 {[%clk 0:00:58.6]} 27. f5 {[%clk 0:01:37.2]} 27... Bc6
{[%clk 0:00:47.8]} 28. e5 {[%clk 0:01:34.5]} 28... Rh6 {[%clk 0:00:47.9]} 29. g5
{[%clk 0:01:32.5]} 29... Rh5 {[%clk 0:00:45.4]} 30. f6+ {[%clk 0:01:28.3]} 30...
Kf8 {[%clk 0:00:36.2]} 31. g6 {[%clk 0:01:17.9]} 31... Rxe5 {[%clk 0:00:14.3]}
32. gxf7 {[%clk 0:01:13.2]} 1-0

[Event "Late-Titled-Tuesday-Blitz-March-19-2024"]
[Site "Chess.com"]
[Date "2024.03.19"]
[Round "5"]
[White "mitrabhaa"]
[Black "vladislavkovalev"]
[Result "1-0"]
[WhiteElo "3067"]
[BlackElo "2876"]
[TimeControl "180+1"]
[EndTime "14:54:00 PDT"]
[Termination "mitrabhaa won by checkmate"]

1. Nf3 {[%clk 0:03:00.9]} 1... Nf6 {[%clk 0:03:00.4]} 2. c4 {[%clk 0:03:00.7]}
2... e6 {[%clk 0:03:00.3]} 3. Nc3 {[%clk 0:02:59.4]} 3... d5 {[%clk 0:02:58.5]}
4. e3 {[%clk 0:02:59.9]} 4... Be7 {[%clk 0:02:55.6]} 5. b3 {[%clk 0:02:59.7]}
5... O-O {[%clk 0:02:55.7]} 6. Bb2 {[%clk 0:03:00.3]} 6... b6 {[%clk 0:02:55.9]}
7. cxd5 {[%clk 0:03:00.2]} 7... exd5 {[%clk 0:02:53.1]} 8. d4 {[%clk 0:03:00.4]}
8... Bb7 {[%clk 0:02:51.1]} 9. Bd3 {[%clk 0:03:01]} 9... Nbd7 {[%clk 0:02:50.5]}
10. O-O {[%clk 0:03:01.5]} 10... a6 {[%clk 0:02:51]} 11. Rc1 {[%clk 0:02:59.3]}
11... Bd6 {[%clk 0:02:49.5]} 12. Ne2 {[%clk 0:02:58.7]} 12... Re8 {[%clk
0:02:48.8]} 13. Ng3 {[%clk 0:02:59.3]} 13... g6 {[%clk 0:02:45.1]} 14. Rc2
{[%clk 0:02:54.8]} 14... Qe7 {[%clk 0:02:36.5]} 15. Qa1 {[%clk 0:02:52.7]} 15...
Ne4 {[%clk 0:02:25.2]} 16. Rfc1 {[%clk 0:02:50.3]} 16... c5 {[%clk 0:01:44.6]}
17. dxc5 {[%clk 0:02:47.2]} 17... bxc5 {[%clk 0:01:45.5]} 18. Bxe4 {[%clk
0:02:39.5]} 18... dxe4 {[%clk 0:01:46.4]} 19. Nd2 {[%clk 0:02:40.1]} 19... Qe6
{[%clk 0:01:32.9]} 20. Nc4 {[%clk 0:02:39.1]} 20... Bf8 {[%clk 0:01:33.4]} 21.
Rd2 {[%clk 0:02:35.9]} 21... Nb6 {[%clk 0:01:27.3]} 22. Nxb6 {[%clk 0:02:22.6]}
22... Qxb6 {[%clk 0:01:28.2]} 23. Rcd1 {[%clk 0:02:22.3]} 23... Rad8 {[%clk
0:01:21.9]} 24. Nf1 {[%clk 0:02:19.8]} 24... Rxd2 {[%clk 0:01:21.6]} 25. Nxd2
{[%clk 0:02:19.6]} 25... Rd8 {[%clk 0:01:19.8]} 26. Nc4 {[%clk 0:02:17.5]} 26...
Qc7 {[%clk 0:01:05.7]} 27. h3 {[%clk 0:02:02.1]} 27... Rd5 {[%clk 0:00:45.2]}
28. Qc1 {[%clk 0:01:55.6]} 28... Qd7 {[%clk 0:00:40.3]} 29. Rxd5 {[%clk
0:01:54.5]} 29... Qxd5 {[%clk 0:00:11.6]} 30. Qc3 {[%clk 0:01:55.4]} 30... Qd1+
{[%clk 0:00:11.9]} 31. Kh2 {[%clk 0:01:55.6]} 31... Bd6+ {[%clk 0:00:12.7]} 32.
g3 {[%clk 0:01:48.7]} 32... Kf8 {[%clk 0:00:01.8]} 33. Qh8+ {[%clk 0:01:42.5]}
33... Ke7 {[%clk 0:00:02.1]} 34. Qf6+ {[%clk 0:01:43.1]} 34... Kd7 {[%clk
0:00:02.1]} 35. Qxf7+ {[%clk 0:01:39.7]} 35... Kc6 {[%clk 0:00:02.4]} 36. Na5+
{[%clk 0:01:36.7]} 36... Kb5 {[%clk 0:00:01.2]} 37. Qxb7+ {[%clk 0:01:36.3]}
37... Kxa5 {[%clk 0:00:01.4]} 38. Bc3# {[%clk 0:01:36.9]} 1-0